bitfinex/quotes_BTCUSD_20251113
["timestamp","ask_amount","ask_price","bid_price","bid_amount"]
[1763075123096,0.20030491,99848.0,99840.0,0.02]
[1763075123211,0.01001301,99870.0,99840.0,0.02]
[1763075123411,0.20031005,99846.0,99840.0,0.02]
[1763075123648,0.20031126,99845.0,99841.0,0.04341874]
[1763075124054,0.20031126,99845.0,99841.0,0.04346515]
[1763075124256,0.20031248,99844.0,99841.0,0.04346515]
[1763075124469,0.20031126,99845.0,99841.0,0.04346515]
[1763075124663,0.20030377,99849.0,99841.0,0.04346515]
[1763075124869,0.20030377,99849.0,99841.0,0.36646515]
[1763075125094,0.20028999,99856.0,99846.0,0.04341874]
[1763075125294,0.40047731,99881.0,99848.0,0.04341874]
[1763075125529,0.33617,99888.0,99853.0,0.04341874]
[1763075125735,0.0402557,99899.0,99861.0,0.04341874]
[1763075126034,0.0002,99880.0,99870.0,0.22025877]
[1763075126238,0.0002,99880.0,99871.0,0.04341874]
[1763075126412,0.20024535,99878.0,99871.0,0.04341874]
[1763075126737,0.2004419,99880.0,99871.0,0.04341874]
[1763075126914,0.0002,99880.0,99871.0,0.04341874]
[1763075127098,0.0002,99880.0,99879.0,0.00052]
[1763075127514,0.0002,99880.0,99877.0,0.20024459]
[1763075127684,0.0002,99880.0,99878.0,0.2002431]
[1763075127889,0.0002,99880.0,99877.0,0.20024581]
[1763075128088,0.0002,99880.0,99878.0,0.00052]
[1763075128929,0.0002,99880.0,99879.0,0.04341874]
[1763075129130,0.0002,99880.0,99878.0,0.04393874]
[1763075129446,0.00122405,99880.0,99878.0,0.24418255]
[1763075129592,0.0002,99880.0,99879.0,0.00052]
[1763075130995,0.0002,99880.0,99879.0,0.00152]
[1763075131199,0.00122405,99880.0,99879.0,0.001]
[1763075131438,0.00122405,99880.0,99878.0,0.24366255]
[1763075131647,0.0002,99880.0,99879.0,0.00052]
[1763075131847,0.0002,99880.0,99879.0,0.00252]
[1763075132048,0.0002,99880.0,99879.0,0.00352]
[1763075132227,0.0002,99880.0,99877.0,0.36641874]
[1763075132426,0.0002,99880.0,99878.0,0.001]
[1763075132629,0.0002,99880.0,99878.0,0.003]
[1763075132833,0.0002,99880.0,99879.0,0.00052]
[1763075133034,0.0002,99880.0,99879.0,0.04493874]
[1763075133252,0.0002,99880.0,99879.0,0.04393874]
[1763075133454,0.0002,99880.0,99879.0,0.04341874]
[1763075134390,0.010007,99930.0,99897.0,0.04341874]
[1763075134592,0.01034777,99910.0,99900.0,0.02]
[1763075134933,0.21052793,99910.0,99909.0,0.00052]
[1763075135364,0.20019619,99902.0,99901.0,0.04341874]
[1763075135518,0.2002139,99894.0,99891.0,0.04341874]
[1763075135723,0.20021441,99893.0,99891.0,0.04341874]
[1763075135933,0.20021441,99893.0,99892.0,0.00052]
[1763075136087,0.2002139,99894.0,99892.0,0.00052]
[1763075136088,0.20021245,99894.0,99892.0,0.00052]
[1763075137773,0.20020903,99896.0,99892.0,0.00052]
[1763075138056,0.20157091,99893.0,99892.0,0.04493874]
[1763075138264,0.20157091,99893.0,99892.0,0.04693874]
[1763075138465,0.20157091,99893.0,99892.0,0.04541874]
[1763075138628,0.20157091,99893.0,99892.0,0.04641874]
[1763075138836,0.20157091,99893.0,99892.0,0.04341874]
[1763075139297,0.00135669,99893.0,99892.0,0.04441874]
[1763075139500,0.00135669,99893.0,99892.0,0.04341874]
[1763075139934,0.00135669,99893.0,99892.0,0.04441874]
[1763075140146,0.00135669,99893.0,99892.0,0.04641874]
[1763075140497,0.00135669,99893.0,99892.0,0.04441874]
[1763075141109,0.00135669,99893.0,99892.0,0.24463497]
[1763075141309,0.00135669,99893.0,99892.0,0.56663497]
[1763075141699,0.00135669,99893.0,99892.0,0.56863497]
[1763075142007,0.00135669,99893.0,99892.0,0.56963497]
[1763075142210,0.00135669,99893.0,99892.0,0.59970393]
[1763075142677,0.00135669,99893.0,99892.0,0.59870393]
[1763075142834,0.00101669,99893.0,99892.0,0.59870393]
[1763075143034,0.20018814,99907.0,99903.0,0.04341874]
[1763075143238,0.20018814,99907.0,99901.0,0.04341874]
[1763075143239,0.20018689,99907.0,99901.0,0.04341874]
[1763075143547,0.20051893,99910.0,99909.0,0.00052]
[1763075143745,0.20018817,99906.0,99902.0,0.00052]
[1763075144151,0.20019282,99904.0,99903.0,0.002]
[1763075144569,0.20019619,99902.0,99901.0,0.04441874]
[1763075144806,0.20019619,99902.0,99901.0,0.04341874]
[1763075146149,0.00033877,99910.0,99901.0,0.04341874]
[1763075146346,0.00033877,99910.0,99902.0,0.04393874]
[1763075146494,0.00033877,99910.0,99909.0,0.04393874]
[1763075146703,0.00033877,99910.0,99909.0,0.2436009]
[1763075147103,0.00033877,99910.0,99907.0,0.04341874]
[1763075147318,0.00033877,99910.0,99909.0,0.2436009]
[1763075148121,0.00033877,99910.0,99909.0,0.2446009]
[1763075148529,0.00033877,99910.0,99909.0,0.2456009]
[1763075148771,0.00033877,99910.0,99909.0,0.2446009]
[1763075149100,0.00077374,99910.0,99909.0,0.2456009]
[1763075149243,0.00077374,99910.0,99909.0,0.2446009]
[1763075149654,0.00077374,99910.0,99909.0,0.2466009]
[1763075153556,0.00077374,99910.0,99909.0,0.04641874]
[1763075154607,0.00077374,99910.0,99909.0,0.15201874]
[1763075154801,0.00077374,99910.0,99909.0,0.04541874]
[1763075155211,0.00077374,99910.0,99909.0,0.04441874]
[1763075155617,0.00077374,99910.0,99909.0,0.04641874]
[1763075156371,0.00077374,99910.0,99909.0,0.2466009]
[1763075156503,0.00077374,99910.0,99909.0,0.04641874]
[1763075157448,0.2009539,99910.0,99909.0,0.003]
[1763075157656,0.2009539,99910.0,99909.0,0.04641874]
[1763075158336,0.00077374,99910.0,99909.0,0.04441874]
[1763075158546,0.2009539,99910.0,99909.0,0.04441874]
[1763075158749,0.2009539,99910.0,99909.0,0.04541874]
[1763075158955,0.2009539,99910.0,99909.0,0.04441874]
[1763075159476,0.2009539,99910.0,99909.0,0.04541874]
[1763075159915,0.2009539,99910.0,99909.0,0.04441874]
[1763075159916,0.00077374,99910.0,99909.0,0.04441874]
[1763075160372,0.00077374,99910.0,99909.0,0.04541874]
[1763075160570,0.00077374,99910.0,99909.0,0.04441874]
[1763075161186,0.00077374,99910.0,99909.0,0.04341874]
[1763075161418,0.00077374,99910.0,99909.0,0.04441874]
[1763075161956,0.00077374,99910.0,99909.0,0.04341874]
[1763075162458,0.00077374,99910.0,99909.0,0.04441874]
[1763075166304,0.00077374,99910.0,99909.0,0.001]
[1763075167243,0.20020328,99899.0,99893.0,0.04341874]
[1763075167452,0.20019924,99901.0,99894.0,0.20021222]
[1763075167608,0.0002303,99902.0,99900.0,0.06341874]
[1763075168012,0.0002303,99902.0,99901.0,0.36641874]
[1763075168216,0.20042649,99902.0,99901.0,0.36641874]
[1763075169217,0.20042649,99902.0,99901.0,0.04341874]
[1763075170219,0.20042649,99902.0,99901.0,0.001]
[1763075170480,0.20042649,99902.0,99901.0,0.002]
[1763075171420,0.20042649,99902.0,99901.0,0.001]
[1763075171619,0.20042649,99902.0,99901.0,0.002]
[1763075172247,0.20042649,99902.0,99901.0,0.001]
[1763075173118,0.20021681,99892.0,99891.0,0.04341874]
[1763075173366,0.18392496,99892.0,99891.0,0.04341874]
[1763075173541,0.18392496,99892.0,99884.0,0.323]
[1763075173542,0.20023026,99885.0,99884.0,0.36641874]
[1763075173745,0.2134142,99899.0,99871.0,0.04341874]
[1763075173978,0.20022603,99888.0,99878.0,0.36641874]
[1763075174187,0.2002184,99891.0,99880.0,0.38641874]
[1763075174403,0.20023076,99885.0,99880.0,0.38641874]
[1763075174606,0.20023745,99882.0,99880.0,0.38641874]
[1763075174806,0.20023828,99881.0,99880.0,0.38641874]
[1763075175006,0.01001001,99900.0,99880.0,0.38641874]
[1763075175250,0.20023464,99883.0,99880.0,0.06341874]
[1763075175449,0.20023319,99884.0,99880.0,0.06341874]
[1763075176114,0.20021823,99891.0,99882.0,0.04341874]
[1763075176342,0.01001001,99900.0,99876.0,0.323]
[1763075176548,0.20023375,99884.0,99880.0,0.02]
[1763075176871,0.20023375,99884.0,99880.0,0.021]
[1763075177079,0.20023375,99884.0,99880.0,0.02]
[1763075177280,0.20022011,99891.0,99881.0,0.20023828]
[1763075177523,0.20022011,99891.0,99880.0,0.02]
[1763075177524,0.20022833,99886.0,99880.0,0.22023633]
[1763075177726,0.2002306,99885.0,99880.0,0.02]
[1763075177943,0.20022833,99886.0,99880.0,0.021]
[1763075178156,0.01001001,99900.0,99880.0,0.021]
[1763075178366,0.20023828,99881.0,99880.0,0.021]
[1763075178565,0.20023828,99881.0,99880.0,0.001]
[1763075178773,0.20023828,99881.0,99880.0,0.002]
[1763075179179,0.20023671,99882.0,99880.0,0.021]
[1763075179381,0.2002022,99899.0,99881.0,0.04341874]
[1763075179583,0.21052851,99910.0,99900.0,0.02]
[1763075179785,0.01034777,99910.0,99900.0,0.02]
[1763075179995,0.21052989,99910.0,99900.0,0.02]
[1763075180374,0.20018631,99907.0,99901.0,0.20019807]
[1763075180511,0.010007,99930.0,99901.0,0.20019807]
[1763075180512,0.20016213,99919.0,99901.0,0.20019807]
[1763075180735,0.20016613,99917.0,99900.0,0.001]
[1763075180958,0.323,99929.0,99910.0,0.02]
[1763075181167,0.20017667,99912.0,99910.0,0.02]
[1763075181370,0.20015356,99924.0,99910.0,0.02]
[1763075181570,0.20016003,99921.0,99910.0,0.02]
[1763075181805,0.010007,99930.0,99910.0,0.02]
[1763075182012,0.20016786,99917.0,99910.0,0.02]
[1763075182214,0.20014892,99926.0,99910.0,0.02]
[1763075182384,0.20017815,99911.0,99910.0,0.02]
[1763075182735,0.20014892,99926.0,99910.0,0.02]
[1763075182988,0.010007,99930.0,99914.0,0.20017193]
[1763075183190,0.010007,99930.0,99915.0,0.20016821]
[1763075183394,0.010007,99930.0,99910.0,0.02]
[1763075183595,0.010006,99940.0,99910.0,0.02]
[1763075183812,0.2001372,99932.0,99910.0,0.09735121]
[1763075184168,0.20012207,99939.0,99911.0,0.04341874]
[1763075184426,0.010006,99940.0,99911.0,0.04341874]
[1763075184638,0.20014961,99926.0,99912.0,0.20017615]
[1763075184851,0.20014961,99926.0,99920.0,0.20015951]
[1763075185076,0.20014535,99928.0,99921.0,0.20015731]
[1763075185286,0.20012687,99939.0,99923.0,0.20015355]
[1763075185510,0.20014382,99929.0,99923.0,0.20015355]
[1763075185904,0.20013999,99931.0,99923.0,0.20015355]
[1763075186112,0.20013256,99934.0,99928.0,0.20014357]
[1763075186535,0.20013125,99935.0,99929.0,0.20014157]
[1763075186783,0.010006,99940.0,99911.0,0.36741874]
[1763075186995,0.20010464,99948.0,99937.0,0.20012423]
[1763075187248,0.010205,99950.0,99923.0,0.001]
[1763075187487,0.20014586,99928.0,99923.0,0.001]
[1763075187730,0.010205,99950.0,99924.0,0.20015211]
[1763075187731,0.20013189,99935.0,99924.0,0.20015211]
[1763075187957,0.20013388,99934.0,99924.0,0.20015211]
[1763075188651,0.20014108,99930.0,99923.0,0.20015406]
[1763075188877,0.00046274,99930.0,99923.0,0.20215211]
[1763075189087,0.00046274,99930.0,99929.0,0.2001421]
[1763075189299,0.00046274,99930.0,99927.0,0.2001453]
[1763075189755,0.00046274,99930.0,99928.0,0.20014225]
[1763075190187,0.00046274,99930.0,99929.0,0.04441874]
[1763075190853,0.00046274,99930.0,99929.0,0.36741874]
[1763075191084,0.00011703,99930.0,99929.0,0.36741874]
[1763075191312,0.0002,99950.0,99949.0,0.20010205]
[1763075191528,0.00033868,99950.0,99949.0,0.20010205]
[1763075191964,0.00033868,99950.0,99949.0,0.59700723]
[1763075192200,1e-08,99960.0,99949.0,0.64042597]
[1763075192416,0.0002,99980.0,99979.0,0.200042]
[1763075192640,18.85126669,100000.0,99989.0,0.200022]
[1763075192859,0.10013865,99990.0,99989.0,0.200022]
[1763075193536,0.10013865,99990.0,99986.0,0.20002776]
[1763075193748,0.10013865,99990.0,99965.0,0.33015124]
[1763075193749,0.20003731,99982.0,99965.0,0.03004625]
[1763075193958,0.20003315,99984.0,99975.0,0.323]
[1763075194344,0.20003535,99983.0,99975.0,0.323]
[1763075194673,0.20002973,99986.0,99975.0,0.323]
[1763075194962,0.10013865,99990.0,99989.0,0.001]
[1763075195171,0.10013865,99990.0,99975.0,0.323]
[1763075195172,0.200022,99989.0,99975.0,0.324]
[1763075195364,0.200022,99989.0,99975.0,0.001]
[1763075195508,0.2000257,99988.0,99975.0,0.002]
[1763075195772,0.20003535,99983.0,99975.0,0.001]
[1763075196191,0.20003772,99982.0,99975.0,0.001]
[1763075196403,0.20004678,99977.0,99975.0,0.001]
[1763075196604,0.20004678,99977.0,99974.0,0.04341874]
[1763075196803,0.20004919,99976.0,99974.0,0.04341874]
[1763075197014,0.20004678,99977.0,99975.0,0.001]
[1763075197422,0.20004678,99977.0,99966.0,0.04341874]
[1763075197675,0.20005138,99975.0,99966.0,0.04341874]
[1763075197880,0.20005138,99975.0,99974.0,0.002]
[1763075197881,0.20005001,99975.0,99974.0,0.002]
[1763075198287,0.11013965,99990.0,99959.0,0.2000802]
[1763075198513,0.20005693,99972.0,99959.0,0.2000802]
[1763075198718,0.19005878,99971.0,99966.0,0.002]
[1763075198847,0.20006104,99970.0,99966.0,0.003]
[1763075199042,0.20004945,99976.0,99966.0,0.003]
[1763075199043,0.20005393,99974.0,99966.0,0.002]
[1763075199279,0.20006103,99970.0,99966.0,0.002]
[1763075199492,0.20005734,99972.0,99966.0,0.002]
[1763075199493,0.20006479,99968.0,99966.0,0.002]
[1763075199691,0.20007798,99962.0,99950.0,0.00999999]
[1763075199896,0.21004362,99980.0,99951.0,0.04341874]
[1763075200098,0.21004362,99980.0,99946.0,0.03005155]
[1763075200099,0.010003,99970.0,99946.0,0.03005155]
[1763075200300,0.010004,99960.0,99940.0,0.00999999]
[1763075200639,0.20010695,99947.0,99940.0,0.24353756]
[1763075200845,0.010004,99960.0,99950.0,0.002]
[1763075201014,0.20009604,99952.0,99951.0,0.04341874]
[1763075201226,0.010003,99970.0,99951.0,0.04341874]
[1763075201751,0.010003,99970.0,99941.0,0.04341874]
[1763075201922,0.20009038,99955.0,99948.0,0.04341874]
[1763075202145,0.20008737,99957.0,99951.0,0.04341874]
[1763075202305,0.20008449,99958.0,99951.0,0.04341874]
[1763075202494,0.010003,99970.0,99956.0,0.20008719]
[1763075202674,0.20006599,99968.0,99956.0,0.20008719]
[1763075202878,0.010003,99970.0,99951.0,0.001]
[1763075202879,0.20008041,99960.0,99954.0,0.20009186]
[1763075203096,0.010003,99970.0,99952.0,0.24351436]
[1763075203298,0.20008156,99960.0,99954.0,0.20009175]
[1763075203508,0.20006201,99969.0,99952.0,0.04341874]
[1763075203708,0.20009129,99955.0,99941.0,0.04355742]
[1763075203912,0.0013043,99953.0,99951.0,0.24351596]
[1763075204127,0.2000888,99956.0,99951.0,0.24551596]
[1763075204330,0.010003,99970.0,99951.0,0.04541874]
[1763075204533,0.20007918,99961.0,99951.0,0.04541874]
[1763075204742,0.010003,99970.0,99952.0,0.002]
[1763075204904,0.20009387,99954.0,99952.0,0.002]
[1763075205108,0.20008694,99957.0,99952.0,0.003]
[1763075205327,0.20008854,99956.0,99952.0,0.003]
[1763075205531,0.20009237,99954.0,99952.0,0.002]
[1763075205945,0.20009604,99952.0,99951.0,0.001]
[1763075206159,0.20009604,99952.0,99951.0,0.003]
[1763075206670,0.20009604,99952.0,99951.0,1.001]
[1763075206818,0.20009604,99952.0,99951.0,1.0]
[1763075207841,0.20009604,99952.0,99951.0,1.002]
[1763075209376,0.20137478,99952.0,99951.0,1.002]
[1763075210484,0.00127874,99952.0,99951.0,1.002]
[1763075211146,0.00127874,99952.0,99951.0,1.001]
[1763075211329,0.00127874,99952.0,99951.0,1.002]
[1763075211959,0.00127874,99952.0,99951.0,1.20109804]
[1763075212172,0.00127874,99952.0,99951.0,1.20309804]
[1763075212784,0.00127874,99952.0,99951.0,1.20109804]
[1763075212982,0.00127874,99952.0,99951.0,1.20309804]
[1763075213397,0.00127874,99952.0,99951.0,1.20509804]
[1763075215651,0.00127874,99952.0,99951.0,1.57151678]
[1763075216094,0.00127874,99952.0,99951.0,1.64588571]
[1763075216290,0.0003105,99952.0,99951.0,1.64588571]
[1763075216741,0.07672,99990.0,99989.0,0.56644074]
[1763075217267,0.07672,99990.0,99989.0,0.04341874]
[1763075217894,0.07685865,99990.0,99989.0,0.04341874]
[1763075218129,0.07685865,99990.0,99989.0,0.04441874]
[1763075220157,0.07685865,99990.0,99989.0,0.04641874]
[1763075220372,0.07685865,99990.0,99989.0,0.003]
[1763075220991,0.07685865,99990.0,99989.0,0.24644074]
[1763075221530,0.07685865,99990.0,99989.0,0.24444074]
[1763075221746,0.07685865,99990.0,99989.0,0.04421248]
[1763075222007,0.07685865,99990.0,99989.0,0.04621248]
[1763075222398,0.07782988,99990.0,99989.0,0.24344074]
[1763075222774,0.07782988,99990.0,99989.0,0.24644074]
[1763075222983,0.07782988,99990.0,99989.0,0.24544074]
[1763075223390,0.07782988,99990.0,99989.0,0.24644074]
[1763075228540,0.07782988,99990.0,99989.0,0.56944074]
[1763075229950,0.07782988,99990.0,99989.0,0.56844074]
[1763075230376,0.07782988,99990.0,99989.0,0.56644074]
[1763075230609,0.07782988,99990.0,99989.0,0.56944074]
[1763075230748,0.07782988,99990.0,99989.0,0.57144074]
[1763075231126,0.07782988,99990.0,99989.0,0.56844074]
[1763075231457,0.07782988,99990.0,99989.0,0.57144074]
[1763075232257,0.07782988,99990.0,99989.0,0.56944074]
[1763075232437,0.07782988,99990.0,99989.0,0.57144074]
[1763075232643,0.07782988,99990.0,99989.0,0.56944074]
[1763075232810,0.07782988,99990.0,99989.0,0.36941874]
[1763075233227,0.07782988,99990.0,99989.0,0.36841874]
[1763075233431,0.07782988,99990.0,99989.0,0.56844074]
[1763075233587,0.07782988,99990.0,99989.0,0.56944074]
[1763075233789,0.07782988,99990.0,99989.0,0.57144074]
[1763075234029,0.07782988,99990.0,99989.0,0.56844074]
[1763075234460,0.07782988,99990.0,99989.0,0.57144074]
[1763075241299,0.07782988,99990.0,99989.0,0.04841874]
[1763075241504,0.27784988,99990.0,99989.0,0.005]
[1763075241749,0.27784988,99990.0,99989.0,0.003]
[1763075241964,0.27784988,99990.0,99989.0,0.005]
[1763075242410,0.27784988,99990.0,99959.0,0.20008099]
[1763075242411,0.2000564,99972.0,99970.0,0.02]
[1763075242643,0.20007803,99961.0,99960.0,0.02]
[1763075242843,0.010002,99980.0,99953.0,0.0747051]
[1763075243052,0.010002,99980.0,99950.0,0.01]
[1763075243259,0.20008456,99958.0,99951.0,0.04341874]
[1763075243499,0.20009023,99955.0,99951.0,0.04341874]
[1763075243732,0.20006385,99969.0,99960.0,0.20007887]
[1763075243918,0.010002,99980.0,99956.0,0.323]
[1763075244236,0.010002,99980.0,99958.0,0.323]
[1763075244347,0.01014063,99980.0,99958.0,0.323]
[1763075244547,0.01014063,99980.0,99959.0,0.20008203]
[1763075244865,0.2000615,99970.0,99963.0,0.20007211]
[1763075245081,0.200042,99979.0,99964.0,0.20007154]
[1763075245284,0.20006126,99970.0,99965.0,0.2000687]
[1763075245849,0.20006126,99970.0,99966.0,0.20006704]
[1763075245965,0.21018263,99980.0,99961.0,0.20007803]
[1763075246169,0.01014063,99980.0,99961.0,0.20007803]
[1763075246370,0.200042,99979.0,99960.0,0.02]
[1763075246594,0.20007803,99961.0,99960.0,0.02]
[1763075246788,0.20008603,99957.0,99951.0,0.323]
[1763075246970,0.20009524,99953.0,99951.0,0.323]
[1763075247377,0.20009724,99952.0,99951.0,0.04341874]
[1763075247713,0.20009004,99955.0,99951.0,0.04341874]
[1763075248047,0.00048571,99971.0,99951.0,0.04441874]
[1763075248248,0.20007654,99962.0,99960.0,0.02]
[1763075248394,0.0002301,99961.0,99960.0,0.02]
[1763075249707,0.0002301,99961.0,99960.0,0.022]
[1763075250681,0.0002301,99961.0,99960.0,0.024]
[1763075251271,0.0002301,99961.0,99960.0,0.004]
[1763075251904,0.0002301,99961.0,99944.0,0.323]
[1763075252124,0.17438087,99946.0,99944.0,0.323]
[1763075252277,0.20011806,99941.0,99940.0,0.02]
[1763075252913,0.20010474,99948.0,99942.0,0.20011491]
[1763075253124,0.20010824,99946.0,99944.0,0.001]
[1763075253874,0.18382493,99946.0,99944.0,0.001]
[1763075254280,0.18382493,99946.0,99944.0,0.002]
[1763075254418,0.18382493,99946.0,99944.0,0.001]
[1763075255030,0.30012004,99962.0,99940.0,0.022]
[1763075255237,0.20011806,99941.0,99940.0,0.02013868]
[1763075255480,0.20011502,99943.0,99940.0,0.02013868]
[1763075255683,0.01253,99971.0,99940.0,0.22025821]
[1763075256020,0.01253,99971.0,99944.0,0.20011071]
[1763075256201,0.20010999,99946.0,99941.0,0.20011691]
[1763075256401,0.20010726,99947.0,99942.0,0.20011552]
[1763075256711,0.20010726,99947.0,99942.0,0.2001152]
[1763075256911,0.20010353,99949.0,99943.0,0.20011363]
[1763075257143,0.01253,99971.0,99940.0,0.02213868]
[1763075257144,0.01253,99991.0,99945.0,0.04341874]
[1763075257332,0.20005193,99975.0,99959.0,0.20008091]
[1763075257527,0.20005547,99973.0,99960.0,0.02]
[1763075257698,0.20003861,99981.0,99960.0,0.02]
[1763075257699,0.20005359,99974.0,99960.0,0.02]
[1763075257912,0.086721,99990.0,99960.0,0.323]
[1763075258270,0.20003625,99982.0,99960.0,0.323]
[1763075258473,0.20004572,99978.0,99960.0,0.323]
[1763075258679,0.20004428,99978.0,99960.0,0.326]
[1763075258881,0.20002974,99986.0,99960.0,0.36941874]
[1763075259283,0.086721,99990.0,99960.0,0.36641874]
[1763075259454,0.20003082,99985.0,99960.0,0.36941874]
[1763075259749,0.20004367,99979.0,99960.0,0.37141874]
[1763075259958,0.20002561,99988.0,99960.0,0.37141874]
[1763075260173,0.20003514,99983.0,99960.0,0.37141874]
[1763075260303,0.20002886,99986.0,99960.0,0.36941874]
[1763075260505,0.20002519,99988.0,99960.0,0.36941874]
[1763075260745,0.086721,99990.0,99960.0,0.37141874]
[1763075261271,0.07672,99990.0,99960.0,0.37141874]
[1763075261483,0.07672,99990.0,99960.0,0.36641874]
[1763075261674,0.20003442,99983.0,99960.0,0.36641874]
[1763075261830,0.20003894,99981.0,99960.0,0.37141874]
[1763075262030,0.20003476,99983.0,99960.0,0.37141874]
[1763075262232,0.20003633,99982.0,99960.0,0.36841874]
[1763075262661,0.20003045,99985.0,99960.0,0.37141874]
[1763075262815,0.20003973,99981.0,99960.0,0.37141874]
[1763075263011,0.086721,99990.0,99960.0,0.36941874]
[1763075263217,0.20006036,99970.0,99960.0,0.36941874]
[1763075263421,0.20006268,99969.0,99960.0,0.37241874]
[1763075263619,0.20005712,99972.0,99960.0,0.37241874]
[1763075263909,5.393e-05,99961.0,99960.0,0.36941874]
[1763075264489,5.393e-05,99961.0,99960.0,0.37141874]
[1763075265846,1.265e-05,99961.0,99960.0,0.37141874]
[1763075266357,1.265e-05,99961.0,99960.0,0.36941874]
[1763075266581,1.265e-05,99961.0,99960.0,0.37141874]
[1763075267040,1.265e-05,99961.0,99960.0,0.36841874]
[1763075267270,1.265e-05,99961.0,99960.0,0.37141874]
[1763075267927,1.265e-05,99961.0,99960.0,0.005]
[1763075268575,1.265e-05,99961.0,99960.0,0.002]
[1763075268953,1.265e-05,99961.0,99960.0,0.025]
[1763075269165,1.265e-05,99961.0,99960.0,0.003]
[1763075269553,1.265e-05,99961.0,99960.0,0.005]
[1763075269752,1.265e-05,99961.0,99960.0,0.003]
[1763075269957,0.20008723,99957.0,99950.0,0.02]
[1763075270161,1.265e-05,99961.0,99945.0,0.323]
[1763075270366,0.20009068,99961.0,99960.0,0.002]
[1763075270614,0.20009068,99961.0,99960.0,0.003]
[1763075270818,0.20009068,99961.0,99960.0,0.002]
[1763075271030,0.20009252,99954.0,99950.0,0.22009816]
[1763075271233,0.20008982,99956.0,99952.0,0.20009604]
[1763075271606,0.20009107,99955.0,99952.0,0.20009586]
[1763075271812,0.20008238,99959.0,99955.0,0.20008926]
[1763075272032,0.20009804,99951.0,99950.0,0.021]
[1763075272232,1.265e-05,99961.0,99950.0,0.22009969]
[1763075272549,0.20009145,99955.0,99951.0,0.20009735]
[1763075272754,0.20008804,99956.0,99953.0,0.20009355]
[1763075273722,0.20008711,99957.0,99953.0,0.20009404]
[1763075273939,0.18381211,99954.0,99952.0,0.002]
[1763075274165,0.20009804,99951.0,99950.0,0.02]
[1763075275314,1.265e-05,99961.0,99952.0,0.20009528]
[1763075275529,1.265e-05,99961.0,99960.0,0.02]
[1763075275756,1.265e-05,99961.0,99960.0,0.22008003]
[1763075275959,0.20009068,99961.0,99960.0,0.02]
[1763075276112,1.265e-05,99961.0,99960.0,0.02]
[1763075276319,1.265e-05,99961.0,99960.0,0.20008003]
[1763075276519,1.265e-05,99961.0,99960.0,0.01]
[1763075276716,1.265e-05,99961.0,99960.0,0.22008003]
[1763075276917,1.265e-05,99961.0,99960.0,0.22108003]
[1763075277208,1.265e-05,99961.0,99960.0,0.22008003]
[1763075277404,1.265e-05,99961.0,99960.0,0.20408003]
[1763075277609,0.20009068,99961.0,99960.0,0.024]
[1763075277834,1.265e-05,99961.0,99960.0,0.024]
[1763075278037,1.265e-05,99961.0,99960.0,0.22408003]
[1763075278307,1.265e-05,99961.0,99960.0,0.22208003]
[1763075278826,1.265e-05,99961.0,99960.0,0.20408003]
[1763075279858,1.265e-05,99961.0,99960.0,0.20208003]
[1763075280061,1.265e-05,99961.0,99960.0,0.56849877]
[1763075280258,1.265e-05,99961.0,99960.0,0.57049877]
[1763075280735,1.265e-05,99961.0,99960.0,0.59049877]
[1763075280935,1.265e-05,99961.0,99960.0,0.56849877]
[1763075281135,1.265e-05,99961.0,99960.0,0.57049877]
[1763075281570,1.265e-05,99961.0,99960.0,0.327]
[1763075281571,0.20009068,99961.0,99960.0,0.327]
[1763075281882,1.265e-05,99961.0,99960.0,0.325]
[1763075282214,1.265e-05,99961.0,99960.0,0.343]
[1763075282413,0.2000583,99971.0,99970.0,0.02]
[1763075282586,0.086721,99990.0,99970.0,0.02]
[1763075282833,0.20004786,99977.0,99970.0,0.22005965]
[1763075283029,0.20004344,99979.0,99973.0,0.20005367]
[1763075283236,0.20003785,99982.0,99978.0,0.20004333]
[1763075283237,0.20003614,99982.0,99978.0,0.20004333]
[1763075283364,0.20003614,99982.0,99980.0,0.02]
[1763075283570,0.20005608,99972.0,99970.0,0.021]
[1763075283986,0.20005608,99972.0,99970.0,0.02]
[1763075284201,0.20005801,99971.0,99970.0,0.02]
[1763075284606,0.20006402,99968.0,99967.0,0.323]
[1763075285008,0.00013863,99982.0,99962.0,0.323]
[1763075285212,0.20005801,99971.0,99970.0,0.002]
[1763075285375,0.20005488,99973.0,99970.0,0.022]
[1763075285579,0.2000568,99972.0,99970.0,0.022]
[1763075285783,0.2000568,99972.0,99970.0,0.002]
[1763075286384,0.2000568,99972.0,99935.0,0.30542132]
[1763075286385,0.2000568,99972.0,99950.0,0.02]
[1763075286684,0.20009686,99952.0,99950.0,0.02]
[1763075287290,0.20007247,99964.0,99950.0,0.54309993]
[1763075287436,0.2000858,99958.0,99955.0,0.323]
[1763075287641,0.200042,99979.0,99952.0,0.323]
[1763075287838,0.20007731,99962.0,99955.0,0.20008894]
[1763075288051,0.00013863,99962.0,99954.0,0.323]
[1763075288253,0.00013863,99962.0,99960.0,0.02]
[1763075288654,0.20007803,99961.0,99960.0,0.02]
[1763075288858,0.00013863,99962.0,99960.0,0.02]
[1763075289093,0.00013863,99962.0,99961.0,0.20007803]
[1763075290300,3.63e-05,99962.0,99961.0,0.20007803]
[1763075290806,3.63e-05,99962.0,99961.0,0.20307803]
[1763075291190,3.63e-05,99962.0,99961.0,0.20107803]
[1763075291571,3.63e-05,99962.0,99961.0,0.52407803]
[1763075291966,3.63e-05,99962.0,99961.0,0.52607803]
[1763075292164,3.63e-05,99962.0,99961.0,0.56849677]
[1763075292591,3.63e-05,99962.0,99961.0,0.56949677]
[1763075292787,3.63e-05,99962.0,99961.0,0.56849677]
[1763075293328,3.63e-05,99962.0,99961.0,0.52407803]
[1763075293624,3.63e-05,99962.0,99961.0,0.52507803]
[1763075293969,3.63e-05,99962.0,99961.0,0.52307803]
[1763075294212,3.63e-05,99962.0,99961.0,0.52607803]
[1763075294420,3.63e-05,99962.0,99961.0,0.52807803]
[1763075294861,3.63e-05,99962.0,99961.0,0.52507803]
[1763075295709,3.63e-05,99962.0,99961.0,0.52807803]
[1763075296058,3.63e-05,99962.0,99961.0,0.52607803]
[1763075296466,3.63e-05,99962.0,99961.0,0.52807803]
[1763075296648,3.63e-05,99962.0,99961.0,0.52507803]
[1763075296853,3.63e-05,99962.0,99961.0,0.52307803]
[1763075297050,3.63e-05,99962.0,99961.0,0.52607803]
[1763075297262,3.63e-05,99962.0,99961.0,0.52807803]
[1763075298247,6.977e-05,99970.0,99969.0,0.20006201]
[1763075299251,0.20013065,99970.0,99969.0,0.002]
[1763075300300,6.977e-05,99970.0,99969.0,0.002]